[Event "*** Titled Tuesday Blitz"]
[Site "Chess.com"]
[Date "2020.05.19"]
[Round "7"]
[White "Kislov_Oleg"]
[Black "stoleriu"]
[Result "0-1"]
[WhiteElo "2373"]
[BlackElo "2555"]
[TimeControl "180+1"]
[EndTime "13:20:16 PDT"]
[Termination "stoleriu won by checkmate"]

1. e4 {[%clk 0:03:00.9]} 1... e6 {[%clk 0:02:55.7]} 2. d4 {[%clk 0:03:00.9]}
2... d5 {[%clk 0:02:56.6]} 3. Nc3 {[%clk 0:03:00.7]} 3... Bb4 {[%clk 0:02:54.6]}
4. exd5 {[%clk 0:03:00.6]} 4... exd5 {[%clk 0:02:52.4]} 5. Bd3 {[%clk
0:03:00.6]} 5... Nc6 {[%clk 0:02:42.6]} 6. Ne2 {[%clk 0:02:59.8]} 6... Nge7
{[%clk 0:02:38.9]} 7. O-O {[%clk 0:02:55.4]} 7... Bg4 {[%clk 0:02:38.1]} 8. f3
{[%clk 0:02:40.7]} 8... Bh5 {[%clk 0:02:36.8]} 9. Be3 {[%clk 0:02:36.6]} 9...
Bg6 {[%clk 0:02:33.4]} 10. Nf4 {[%clk 0:02:28.9]} 10... Qd7 {[%clk 0:02:24.5]}
11. Nce2 {[%clk 0:02:06]} 11... Bd6 {[%clk 0:02:21.8]} 12. Qd2 {[%clk 0:02:00]}
12... Bxd3 {[%clk 0:02:14.3]} 13. Nxd3 {[%clk 0:01:49]} 13... h5 {[%clk
0:02:10.8]} 14. Bf4 {[%clk 0:01:45.4]} 14... h4 {[%clk 0:02:06.6]} 15. c3 {[%clk
0:01:41.5]} 15... f6 {[%clk 0:01:48.6]} 16. Rae1 {[%clk 0:01:35.3]} 16... O-O-O
{[%clk 0:01:45]} 17. Bxd6 {[%clk 0:01:28.2]} 17... Qxd6 {[%clk 0:01:45.9]} 18.
Nef4 {[%clk 0:01:26.9]} 18... g5 {[%clk 0:01:40.9]} 19. Re6 {[%clk 0:01:19.9]}
19... Qd7 {[%clk 0:01:37]} 20. Nc5 {[%clk 0:01:19.9]} 20... Qe8 {[%clk
0:01:35.5]} 21. Qe2 {[%clk 0:00:54.3]} 21... a6 {[%clk 0:00:35.5]} 22. Nfd3
{[%clk 0:00:53.4]} 22... Qf7 {[%clk 0:00:32.3]} 23. Nxb7 {[%clk 0:00:51.5]}
23... Nf5 {[%clk 0:00:19.4]} 24. Ndc5 {[%clk 0:00:48.1]} 24... Nb8 {[%clk
0:00:17.6]} 25. Re1 {[%clk 0:00:37.7]} 25... Rdg8 {[%clk 0:00:12.1]} 26. Rxa6
{[%clk 0:00:29.9]} 26... g4 {[%clk 0:00:09.2]} 27. Ra8 {[%clk 0:00:23]} 27...
gxf3 {[%clk 0:00:07.9]} 28. Qb5 {[%clk 0:00:10]} 28... Rxg2+ {[%clk 0:00:07.7]}
29. Kh1 {[%clk 0:00:09.9]} 29... Ng3+ {[%clk 0:00:06.7]} 30. hxg3 {[%clk
0:00:07]} 30... hxg3# {[%clk 0:00:07.6]} 0-1

[Event "*** Titled Tuesday Blitz"]
[Site "Chess.com"]
[Date "2020.05.19"]
[Round "7"]
[White "vanyakuba"]
[Black "YellowJacek"]
[Result "1-0"]
[WhiteElo "2443"]
[BlackElo "2290"]
[TimeControl "180+1"]
[EndTime "13:20:16 PDT"]
[Termination "vanyakuba won by checkmate"]

1. e4 {[%clk 0:02:58.2]} 1... c5 {[%clk 0:02:58.2]} 2. c3 {[%clk 0:02:58.2]}
2... Nf6 {[%clk 0:02:54.9]} 3. e5 {[%clk 0:02:58.3]} 3... Nd5 {[%clk 0:02:55]}
4. g3 {[%clk 0:02:58.9]} 4... Qc7 {[%clk 0:02:47.8]} 5. Nf3 {[%clk 0:02:58.6]}
5... Nc6 {[%clk 0:02:45.1]} 6. Qe2 {[%clk 0:02:44.7]} 6... g6 {[%clk 0:02:41.6]}
7. Qe4 {[%clk 0:02:43.9]} 7... e6 {[%clk 0:02:32.9]} 8. Na3 {[%clk 0:02:38.2]}
8... a6 {[%clk 0:02:26.7]} 9. Bg2 {[%clk 0:02:32.1]} 9... f5 {[%clk 0:02:15.5]}
10. exf6 {[%clk 0:02:19]} 10... Nxf6 {[%clk 0:02:14.6]} 11. Qh4 {[%clk
0:02:03.9]} 11... Bg7 {[%clk 0:02:04.6]} 12. O-O {[%clk 0:01:54.5]} 12... b5
{[%clk 0:02:03.4]} 13. d3 {[%clk 0:01:53.6]} 13... O-O {[%clk 0:01:51.6]} 14.
Bh6 {[%clk 0:01:45.2]} 14... Bb7 {[%clk 0:01:47.1]} 15. Rfe1 {[%clk 0:01:44.7]}
15... Rae8 {[%clk 0:01:45.3]} 16. Rad1 {[%clk 0:01:44.1]} 16... e5 {[%clk
0:01:34.7]} 17. Ng5 {[%clk 0:01:33.4]} 17... d5 {[%clk 0:01:25]} 18. Bxg7 {[%clk
0:01:17.4]} 18... Qxg7 {[%clk 0:01:25.9]} 19. Bh3 {[%clk 0:01:04.3]} 19... Nd8
{[%clk 0:01:12.7]} 20. f4 {[%clk 0:00:50]} 20... h6 {[%clk 0:00:52.4]} 21. Nf3
{[%clk 0:00:50]} 21... exf4 {[%clk 0:00:46.1]} 22. gxf4 {[%clk 0:00:42.4]} 22...
Rxe1+ {[%clk 0:00:38.4]} 23. Rxe1 {[%clk 0:00:43.3]} 23... Rf7 {[%clk
0:00:26.4]} 24. Ne5 {[%clk 0:00:42.1]} 24... Re7 {[%clk 0:00:26.5]} 25. Nc2
{[%clk 0:00:33.2]} 25... Nf7 {[%clk 0:00:26.5]} 26. Qf2 {[%clk 0:00:30.9]} 26...
Nxe5 {[%clk 0:00:25.7]} 27. fxe5 {[%clk 0:00:31.3]} 27... Nh5 {[%clk 0:00:25.5]}
28. e6 {[%clk 0:00:28.2]} 28... d4 {[%clk 0:00:20.1]} 29. cxd4 {[%clk
0:00:27.4]} 29... cxd4 {[%clk 0:00:20.4]} 30. Nxd4 {[%clk 0:00:27.6]} 30... Bd5
{[%clk 0:00:18]} 31. Qe3 {[%clk 0:00:26.5]} 31... Qf6 {[%clk 0:00:14.7]} 32. Rf1
{[%clk 0:00:24.7]} 32... Qh4 {[%clk 0:00:14.5]} 33. Qe5 {[%clk 0:00:12.6]} 33...
Qxh3 {[%clk 0:00:10.8]} 34. Rf8+ {[%clk 0:00:12.6]} 34... Kxf8 {[%clk
0:00:10.5]} 35. Qh8# {[%clk 0:00:13.2]} 1-0

[Event "*** Titled Tuesday Blitz"]
[Site "Chess.com"]
[Date "2020.05.19"]
[Round "7"]
[White "EvgenyRomanov"]
[Black "Paralinch"]
[Result "0-1"]
[WhiteElo "2684"]
[BlackElo "2866"]
[TimeControl "180+1"]
[EndTime "13:20:19 PDT"]
[Termination "Paralinch won by resignation"]

1. d4 {[%clk 0:01:43.2]} 1... d5 {[%clk 0:02:59.3]} 2. c4 {[%clk 0:01:43.2]}
2... dxc4 {[%clk 0:03:00.2]} 3. e4 {[%clk 0:01:41.5]} 3... e5 {[%clk 0:03:00.4]}
4. Nf3 {[%clk 0:01:40.5]} 4... exd4 {[%clk 0:03:00.8]} 5. Bxc4 {[%clk
0:01:40.9]} 5... Bb4+ {[%clk 0:03:01]} 6. Bd2 {[%clk 0:01:40.1]} 6... Bxd2+
{[%clk 0:03:00.9]} 7. Nbxd2 {[%clk 0:01:39.5]} 7... Nc6 {[%clk 0:03:01.4]} 8.
O-O {[%clk 0:01:35.3]} 8... Qf6 {[%clk 0:03:01.7]} 9. Nb3 {[%clk 0:01:34.5]}
9... Bg4 {[%clk 0:02:59]} 10. Nc5 {[%clk 0:01:16.2]} 10... Nge7 {[%clk
0:02:50.5]} 11. Nxb7 {[%clk 0:01:12.1]} 11... O-O {[%clk 0:02:47.7]} 12. Nc5
{[%clk 0:01:12.2]} 12... Rad8 {[%clk 0:02:45.2]} 13. Be2 {[%clk 0:01:08.8]}
13... Ng6 {[%clk 0:02:33.1]} 14. Nd3 {[%clk 0:01:08]} 14... Rfe8 {[%clk
0:02:29.2]} 15. h3 {[%clk 0:01:07.4]} 15... Bxf3 {[%clk 0:02:26]} 16. Bxf3
{[%clk 0:01:07]} 16... Nce5 {[%clk 0:02:26.9]} 17. Rc1 {[%clk 0:00:59.4]} 17...
Nxd3 {[%clk 0:02:23.4]} 18. Qxd3 {[%clk 0:00:59.1]} 18... Ne5 {[%clk 0:02:24]}
19. Qb3 {[%clk 0:00:55.4]} 19... d3 {[%clk 0:02:19]} 20. Bd1 {[%clk 0:00:55.2]}
20... Rb8 {[%clk 0:01:57.2]} 21. Qc3 {[%clk 0:00:53.6]} 21... Rxb2 {[%clk
0:01:50.7]} 22. Qxc7 {[%clk 0:00:50]} 22... g5 {[%clk 0:01:36.8]} 23. Bb3 {[%clk
0:00:46.9]} 23... a6 {[%clk 0:01:16.7]} 24. Qc5 {[%clk 0:00:42.6]} 24... Qf4
{[%clk 0:01:03.7]} 25. Rcd1 {[%clk 0:00:41.7]} 25... Re2 {[%clk 0:00:55.2]} 26.
f3 {[%clk 0:00:35.3]} 26... Qg3 {[%clk 0:00:49.2]} 27. Rf2 {[%clk 0:00:35.2]}
27... Nxf3+ {[%clk 0:00:49.4]} 28. Kf1 {[%clk 0:00:35.4]} 28... Nh2+ {[%clk
0:00:44.3]} 29. Kg1 {[%clk 0:00:35.2]} 29... Nf3+ {[%clk 0:00:44.6]} 30. Kf1
{[%clk 0:00:34.8]} 30... Ne5 {[%clk 0:00:37.6]} 31. Bd5 {[%clk 0:00:22.8]} 31...
Rb8 {[%clk 0:00:25.7]} 32. Rxe2 {[%clk 0:00:15.6]} 32... dxe2+ {[%clk
0:00:25.6]} 33. Kxe2 {[%clk 0:00:16.5]} 33... Rb2+ {[%clk 0:00:23.9]} 34. Kf1
{[%clk 0:00:03.5]} 34... Qxg2+ {[%clk 0:00:21.4]} 0-1

[Event "*** Titled Tuesday Blitz"]
[Site "Chess.com"]
[Date "2020.05.19"]
[Round "7"]
[White "JLRHei"]
[Black "GM4life"]
[Result "0-1"]
[WhiteElo "2323"]
[BlackElo "2223"]
[TimeControl "180+1"]
[EndTime "13:20:19 PDT"]
[Termination "GM4life won by resignation"]

1. d4 {[%clk 0:03:00.9]} 1... Nf6 {[%clk 0:02:59.6]} 2. c4 {[%clk 0:03:01.5]}
2... e6 {[%clk 0:02:59.5]} 3. Nf3 {[%clk 0:03:02.1]} 3... d5 {[%clk 0:02:58.5]}
4. g3 {[%clk 0:03:02.6]} 4... Be7 {[%clk 0:02:57.4]} 5. Bg2 {[%clk 0:03:03.1]}
5... O-O {[%clk 0:02:58.3]} 6. O-O {[%clk 0:03:03.7]} 6... dxc4 {[%clk
0:02:58.4]} 7. Na3 {[%clk 0:03:03.5]} 7... Bxa3 {[%clk 0:02:57.4]} 8. bxa3
{[%clk 0:03:04.4]} 8... b5 {[%clk 0:02:54.3]} 9. a4 {[%clk 0:02:56.2]} 9... c6
{[%clk 0:02:45.5]} 10. Ba3 {[%clk 0:02:55.5]} 10... Re8 {[%clk 0:02:43.3]} 11.
Ne5 {[%clk 0:02:55.9]} 11... Nd5 {[%clk 0:02:41.7]} 12. e4 {[%clk 0:02:46.6]}
12... Nc3 {[%clk 0:02:38.2]} 13. Qf3 {[%clk 0:02:42.6]} 13... f6 {[%clk
0:02:28.5]} 14. Qxc3 {[%clk 0:02:01.1]} 14... fxe5 {[%clk 0:02:28.7]} 15. dxe5
{[%clk 0:01:57.8]} 15... Qb6 {[%clk 0:02:15.4]} 16. Rad1 {[%clk 0:01:43.2]}
16... a5 {[%clk 0:02:06.9]} 17. axb5 {[%clk 0:01:42]} 17... cxb5 {[%clk
0:02:06.7]} 18. Bd6 {[%clk 0:01:33.3]} 18... b4 {[%clk 0:02:04.7]} 19. Qf3
{[%clk 0:01:17.1]} 19... Nc6 {[%clk 0:02:00.5]} 20. Qh5 {[%clk 0:01:11.7]} 20...
Ba6 {[%clk 0:01:47.6]} 21. Kh1 {[%clk 0:01:03.9]} 21... c3 {[%clk 0:01:46.7]}
22. Rfe1 {[%clk 0:01:01]} 22... Qxf2 {[%clk 0:01:42.3]} 23. Bf1 {[%clk 0:00:54]}
23... g6 {[%clk 0:01:28.6]} 24. Qg5 {[%clk 0:00:34.9]} 24... Bb7 {[%clk
0:01:08.1]} 25. Bc4 {[%clk 0:00:34.5]} 25... Nd4 {[%clk 0:01:05.9]} 26. Qf6
{[%clk 0:00:29]} 26... Qxf6 {[%clk 0:00:44.2]} 27. exf6 {[%clk 0:00:29.9]} 27...
Nf3 {[%clk 0:00:41.8]} 28. Re3 {[%clk 0:00:15.8]} 28... Nd2 {[%clk 0:00:39.8]}
29. Bd3 {[%clk 0:00:16.3]} 29... Rad8 {[%clk 0:00:34.2]} 30. Bc7 {[%clk
0:00:15.3]} 30... Rxd3 {[%clk 0:00:32.9]} 31. Rxd3 {[%clk 0:00:14.1]} 31...
Bxe4+ {[%clk 0:00:33.3]} 32. Kg1 {[%clk 0:00:15]} 32... Bxd3 {[%clk 0:00:32.5]}
33. Bxa5 {[%clk 0:00:15.9]} 33... c2 {[%clk 0:00:30.7]} 34. Rc1 {[%clk 0:00:16]}
34... Nf3+ {[%clk 0:00:28.2]} 35. Kf2 {[%clk 0:00:16.3]} 35... Nd4 {[%clk
0:00:28.6]} 36. Bxb4 {[%clk 0:00:13.1]} 36... Ne2 {[%clk 0:00:28.5]} 37. Rxc2
{[%clk 0:00:13.2]} 37... Bxc2 {[%clk 0:00:27.8]} 38. Kxe2 {[%clk 0:00:14.1]}
38... Kf7 {[%clk 0:00:27.3]} 39. Kd2 {[%clk 0:00:12.6]} 39... Ba4 {[%clk
0:00:27.4]} 0-1

[Event "*** Titled Tuesday Blitz"]
[Site "Chess.com"]
[Date "2020.05.19"]
[Round "7"]
[White "Twitch_ElhamBlitz05"]
[Black "Indianlad"]
[Result "1-0"]
[WhiteElo "2776"]
[BlackElo "2928"]
[TimeControl "180+1"]
[EndTime "13:20:20 PDT"]
[Termination "Twitch_ElhamBlitz05 won by resignation"]

1. e4 {[%clk 0:03:00.9]} 1... c5 {[%clk 0:02:56.6]} 2. Nf3 {[%clk 0:02:58.1]}
2... d6 {[%clk 0:02:56.3]} 3. d4 {[%clk 0:02:56.3]} 3... cxd4 {[%clk 0:02:57.1]}
4. Nxd4 {[%clk 0:02:57]} 4... Nf6 {[%clk 0:02:57.3]} 5. f3 {[%clk 0:02:57.6]}
5... a6 {[%clk 0:02:57.8]} 6. c4 {[%clk 0:02:54.8]} 6... e6 {[%clk 0:02:57.3]}
7. Nc3 {[%clk 0:02:54.5]} 7... Be7 {[%clk 0:02:52.5]} 8. Be3 {[%clk 0:02:54.2]}
8... b6 {[%clk 0:02:52.6]} 9. Qd2 {[%clk 0:02:52.2]} 9... Bb7 {[%clk 0:02:52.9]}
10. Be2 {[%clk 0:02:50]} 10... Nbd7 {[%clk 0:02:52.6]} 11. O-O {[%clk
0:02:49.9]} 11... Qb8 {[%clk 0:02:49.9]} 12. Rfd1 {[%clk 0:02:49.5]} 12... Bd8
{[%clk 0:02:49.8]} 13. b4 {[%clk 0:02:46]} 13... Bc7 {[%clk 0:02:49.6]} 14. b5
{[%clk 0:02:42.3]} 14... a5 {[%clk 0:01:32.4]} 15. Nc6 {[%clk 0:02:37.4]} 15...
Bxc6 {[%clk 0:01:32.6]} 16. bxc6 {[%clk 0:02:38.3]} 16... Ne5 {[%clk 0:01:32.6]}
17. Nb5 {[%clk 0:02:34.5]} 17... Ke7 {[%clk 0:01:07.9]} 18. f4 {[%clk
0:02:24.3]} 18... Nxc6 {[%clk 0:01:04.1]} 19. c5 {[%clk 0:02:18.1]} 19... dxc5
{[%clk 0:00:54.9]} 20. e5 {[%clk 0:02:16.4]} 20... Nd5 {[%clk 0:00:55]} 21. Bf2
{[%clk 0:02:13.5]} 21... g5 {[%clk 0:00:37.8]} 22. f5 {[%clk 0:01:56]} 22...
Bxe5 {[%clk 0:00:37.9]} 23. fxe6 {[%clk 0:01:55.8]} 23... fxe6 {[%clk
0:00:35.8]} 24. Qxg5+ {[%clk 0:01:52.6]} 24... Bf6 {[%clk 0:00:36.3]} 25. Qh6
{[%clk 0:01:49.6]} 25... Qf4 {[%clk 0:00:34.3]} 26. Qh3 {[%clk 0:01:45.8]} 26...
Bxa1 {[%clk 0:00:30.3]} 27. Rxa1 {[%clk 0:01:39.9]} 27... Raf8 {[%clk
0:00:29.9]} 28. Rf1 {[%clk 0:01:28.6]} 28... Qe5 {[%clk 0:00:30]} 29. Bf3 {[%clk
0:01:26.3]} 29... Nf4 {[%clk 0:00:21.2]} 30. Qh6 {[%clk 0:01:25.2]} 30... Nd4
{[%clk 0:00:17.9]} 31. Nxd4 {[%clk 0:01:15.7]} 31... cxd4 {[%clk 0:00:18.8]} 32.
Re1 {[%clk 0:01:16.3]} 32... Qf5 {[%clk 0:00:12.8]} 33. Qg7+ {[%clk 0:01:13.5]}
33... Qf7 {[%clk 0:00:06.9]} 34. Bh4+ {[%clk 0:01:12.8]} 34... Kd7 {[%clk
0:00:05.8]} 35. Qxd4+ {[%clk 0:01:11.1]} 35... Nd5 {[%clk 0:00:06.2]} 36. Bxd5
{[%clk 0:00:53.6]} 36... exd5 {[%clk 0:00:07.1]} 37. Qxb6 {[%clk 0:00:54.1]}
37... Rhg8 {[%clk 0:00:05]} 38. Qb7+ {[%clk 0:00:51]} 38... Kd6 {[%clk
0:00:05.2]} 39. Be7+ {[%clk 0:00:51.6]} 1-0

[Event "*** Titled Tuesday Blitz"]
[Site "Chess.com"]
[Date "2020.05.19"]
[Round "7"]
[White "Alexander_Zubov"]
[Black "Igrok3069"]
[Result "1-0"]
[WhiteElo "2946"]
[BlackElo "2770"]
[TimeControl "180+1"]
[EndTime "13:20:21 PDT"]
[Termination "Alexander_Zubov won on time"]

1. d4 {[%clk 0:03:00.9]} 1... d5 {[%clk 0:02:59.4]} 2. c4 {[%clk 0:03:00.3]}
2... c6 {[%clk 0:02:59.6]} 3. Nf3 {[%clk 0:03:00.2]} 3... Nf6 {[%clk 0:02:59.9]}
4. Qb3 {[%clk 0:02:58.6]} 4... e6 {[%clk 0:02:42.1]} 5. Bg5 {[%clk 0:02:57.5]}
5... Nbd7 {[%clk 0:02:41.6]} 6. Nbd2 {[%clk 0:02:54.5]} 6... Be7 {[%clk
0:02:27.1]} 7. Rc1 {[%clk 0:02:51]} 7... O-O {[%clk 0:02:26.4]} 8. e3 {[%clk
0:02:50.2]} 8... b6 {[%clk 0:02:14.2]} 9. cxd5 {[%clk 0:02:49.5]} 9... cxd5
{[%clk 0:02:13.9]} 10. Bd3 {[%clk 0:02:27.6]} 10... Bb7 {[%clk 0:02:13.3]} 11.
O-O {[%clk 0:02:27.4]} 11... Rc8 {[%clk 0:02:03.2]} 12. Rc3 {[%clk 0:02:05.8]}
12... Rxc3 {[%clk 0:01:49.1]} 13. bxc3 {[%clk 0:02:04.5]} 13... Ne4 {[%clk
0:01:49.2]} 14. Bxe7 {[%clk 0:02:03.8]} 14... Qxe7 {[%clk 0:01:50.1]} 15. c4
{[%clk 0:01:45.3]} 15... Nxd2 {[%clk 0:01:20.5]} 16. Nxd2 {[%clk 0:01:44.8]}
16... dxc4 {[%clk 0:01:11.1]} 17. Nxc4 {[%clk 0:01:29.5]} 17... Rc8 {[%clk
0:01:10.6]} 18. e4 {[%clk 0:01:00.5]} 18... Nf6 {[%clk 0:01:02.2]} 19. e5 {[%clk
0:00:33.7]} 19... Ne8 {[%clk 0:00:46.3]} 20. Qb1 {[%clk 0:00:30.7]} 20... h6
{[%clk 0:00:32.7]} 21. Rd1 {[%clk 0:00:29.1]} 21... Qg5 {[%clk 0:00:19.8]} 22.
Ne3 {[%clk 0:00:24.4]} 22... Qf4 {[%clk 0:00:17.5]} 23. Qb2 {[%clk 0:00:17.3]}
23... Rd8 {[%clk 0:00:14.3]} 24. Bf1 {[%clk 0:00:16.2]} 24... Nc7 {[%clk
0:00:12.6]} 25. g3 {[%clk 0:00:16.7]} 25... Qg5 {[%clk 0:00:11.6]} 26. h4 {[%clk
0:00:16.7]} 26... Qe7 {[%clk 0:00:11.1]} 27. Rc1 {[%clk 0:00:15.6]} 27... Be4
{[%clk 0:00:06.6]} 28. a4 {[%clk 0:00:14.8]} 28... Bf3 {[%clk 0:00:04]} 29. Nc4
{[%clk 0:00:13]} 29... Ne8 {[%clk 0:00:03.1]} 30. Nd2 {[%clk 0:00:12.7]} 30...
Bd5 {[%clk 0:00:02.7]} 31. Bb5 {[%clk 0:00:12.3]} 1-0

[Event "*** Titled Tuesday Blitz"]
[Site "Chess.com"]
[Date "2020.05.19"]
[Round "7"]
[White "damayito"]
[Black "Bad4life"]
[Result "0-1"]
[WhiteElo "1631"]
[BlackElo "2294"]
[TimeControl "180+1"]
[EndTime "13:20:21 PDT"]
[Termination "Bad4life won on time"]

1. e4 {[%clk 0:00:57.3]} 1... g6 {[%clk 0:03:00.9]} 2. Nf3 {[%clk 0:00:52]} 2...
d6 {[%clk 0:02:33.9]} 3. g3 {[%clk 0:00:51.3]} 3... c5 {[%clk 0:02:34.3]} 4. Bg2
{[%clk 0:00:51.7]} 4... Bg7 {[%clk 0:02:35.2]} 5. O-O {[%clk 0:00:50.3]} 5...
Nc6 {[%clk 0:02:35.2]} 6. d3 {[%clk 0:00:49.2]} 6... Nf6 {[%clk 0:02:34.5]} 7.
Nc3 {[%clk 0:00:49.7]} 7... O-O {[%clk 0:02:35.1]} 8. Bg5 {[%clk 0:00:49.7]}
8... h6 {[%clk 0:02:34.9]} 9. Bd2 {[%clk 0:00:48.7]} 9... Kh7 {[%clk 0:02:35.4]}
10. Rb1 {[%clk 0:00:34.9]} 10... e5 {[%clk 0:02:29.3]} 11. Nd5 {[%clk 0:00:28]}
11... b5 {[%clk 0:02:26.2]} 12. c4 {[%clk 0:00:26.5]} 12... Nxd5 {[%clk
0:02:22.5]} 13. exd5 {[%clk 0:00:25.4]} 13... Ne7 {[%clk 0:02:14.5]} 14. b3
{[%clk 0:00:24.4]} 14... b4 {[%clk 0:02:13.3]} 15. Nh4 {[%clk 0:00:19.5]} 15...
Nf5 {[%clk 0:01:33.8]} 16. Nxf5 {[%clk 0:00:17.5]} 16... Bxf5 {[%clk 0:01:33.6]}
17. Be3 {[%clk 0:00:17.3]} 17... a5 {[%clk 0:01:30]} 18. f4 {[%clk 0:00:17]}
18... a4 {[%clk 0:01:26.2]} 19. fxe5 {[%clk 0:00:16.8]} 19... axb3 {[%clk
0:01:25.2]} 20. axb3 {[%clk 0:00:16.1]} 20... Bxe5 {[%clk 0:01:23.3]} 21. Bf4
{[%clk 0:00:15.8]} 21... Bd4+ {[%clk 0:01:21]} 22. Kh1 {[%clk 0:00:15.3]} 22...
Ra2 {[%clk 0:01:21.2]} 23. Rc1 {[%clk 0:00:10.1]} 23... Qd7 {[%clk 0:01:17.6]}
24. Rc2 {[%clk 0:00:10.2]} 24... Bg4 {[%clk 0:01:14.5]} 25. Qc1 {[%clk
0:00:09.4]} 25... Ra1 {[%clk 0:01:13.5]} 26. Qd2 {[%clk 0:00:07.2]} 26... Rxf1+
{[%clk 0:01:10]} 27. Bxf1 {[%clk 0:00:07.2]} 27... Bf3+ {[%clk 0:01:10]} 28. Bg2
{[%clk 0:00:06.1]} 28... Qh3 {[%clk 0:01:10.5]} 29. Rc1 {[%clk 0:00:05.5]} 29...
Qh5 {[%clk 0:00:51.4]} 30. Bxf3 {[%clk 0:00:05.5]} 30... Qxf3+ {[%clk
0:00:52.3]} 31. Qg2 {[%clk 0:00:05.1]} 31... Qxd3 {[%clk 0:00:52.6]} 32. Rf1
{[%clk 0:00:03.3]} 32... Rd8 {[%clk 0:00:28.3]} 33. Qf3 {[%clk 0:00:02.9]} 33...
Qc2 {[%clk 0:00:20]} 0-1

[Event "*** Titled Tuesday Blitz"]
[Site "Chess.com"]
[Date "2020.05.19"]
[Round "7"]
[White "ajian"]
[Black "MisiekZielony"]
[Result "1-0"]
[WhiteElo "2317"]
[BlackElo "2108"]
[TimeControl "180+1"]
[EndTime "13:20:23 PDT"]
[Termination "ajian won on time"]

1. d4 {[%clk 0:03:00.9]} 1... d5 {[%clk 0:02:59.6]} 2. c4 {[%clk 0:03:01.1]}
2... c6 {[%clk 0:02:59.6]} 3. Nf3 {[%clk 0:03:00.9]} 3... Nf6 {[%clk 0:02:59.4]}
4. Nc3 {[%clk 0:03:00.3]} 4... dxc4 {[%clk 0:02:59.1]} 5. a4 {[%clk 0:03:00.2]}
5... a5 {[%clk 0:02:58.9]} 6. e4 {[%clk 0:02:57.1]} 6... Bg4 {[%clk 0:02:58.4]}
7. Bxc4 {[%clk 0:02:56.3]} 7... e6 {[%clk 0:02:58.3]} 8. O-O {[%clk 0:02:55.7]}
8... Bb4 {[%clk 0:02:57.7]} 9. Re1 {[%clk 0:02:48.2]} 9... Nbd7 {[%clk
0:02:44.5]} 10. h3 {[%clk 0:02:43.7]} 10... Bh5 {[%clk 0:02:43.7]} 11. Bg5
{[%clk 0:02:44]} 11... h6 {[%clk 0:01:53.4]} 12. Bh4 {[%clk 0:02:43]} 12... Qb6
{[%clk 0:01:45.5]} 13. e5 {[%clk 0:02:08.1]} 13... Nd5 {[%clk 0:01:43]} 14. Qd3
{[%clk 0:01:58.5]} 14... g5 {[%clk 0:01:15.2]} 15. Bg3 {[%clk 0:01:56.9]} 15...
Bg6 {[%clk 0:01:14.7]} 16. Qd2 {[%clk 0:01:33.5]} 16... O-O-O {[%clk 0:00:52.3]}
17. Rec1 {[%clk 0:01:29.5]} 17... Kb8 {[%clk 0:00:48]} 18. Qe2 {[%clk
0:01:24.3]} 18... Nf4 {[%clk 0:00:34.8]} 19. Bxf4 {[%clk 0:01:23.2]} 19... gxf4
{[%clk 0:00:34.8]} 20. Ne4 {[%clk 0:01:18.2]} 20... Bh5 {[%clk 0:00:22.9]} 21.
Rc2 {[%clk 0:00:57.1]} 21... c5 {[%clk 0:00:14.6]} 22. dxc5 {[%clk 0:00:39.2]}
22... Nxc5 {[%clk 0:00:13.4]} 23. Nd6 {[%clk 0:00:32.5]} 23... Rd7 {[%clk
0:00:04.8]} 24. Bb5 {[%clk 0:00:28.9]} 24... Rc7 {[%clk 0:00:04.2]} 25. Rac1
{[%clk 0:00:26.2]} 25... Bg6 {[%clk 0:00:03.9]} 26. Rc4 {[%clk 0:00:22.2]} 26...
Bd3 {[%clk 0:00:03.8]} 27. Qd1 {[%clk 0:00:19.6]} 27... Bxc4 {[%clk 0:00:03.9]}
28. Nxc4 {[%clk 0:00:19.8]} 28... Qa7 {[%clk 0:00:03.6]} 29. Nd6 {[%clk
0:00:15.2]} 29... Rd8 {[%clk 0:00:02.7]} 30. Qe2 {[%clk 0:00:14.5]} 30... Qb6
{[%clk 0:00:02]} 31. Rd1 {[%clk 0:00:14.3]} 1-0

[Event "*** Titled Tuesday Blitz"]
[Site "Chess.com"]
[Date "2020.05.19"]
[Round "7"]
[White "csati17"]
[Black "ElGasanov"]
[Result "0-1"]
[WhiteElo "2568"]
[BlackElo "2756"]
[TimeControl "180+1"]
[EndTime "13:20:25 PDT"]
[Termination "ElGasanov won by resignation"]

1. c4 {[%clk 0:03:00.9]} 1... e5 {[%clk 0:02:55.8]} 2. g3 {[%clk 0:03:00.9]}
2... d6 {[%clk 0:02:55.3]} 3. Nc3 {[%clk 0:03:00.1]} 3... f5 {[%clk 0:02:55.1]}
4. d4 {[%clk 0:02:59.9]} 4... Be7 {[%clk 0:02:52.6]} 5. dxe5 {[%clk 0:02:57.1]}
5... dxe5 {[%clk 0:02:52.4]} 6. Qxd8+ {[%clk 0:02:58]} 6... Bxd8 {[%clk
0:02:53]} 7. Nf3 {[%clk 0:02:58.9]} 7... e4 {[%clk 0:02:49.6]} 8. Nd4 {[%clk
0:02:56.5]} 8... c6 {[%clk 0:02:42.8]} 9. Bf4 {[%clk 0:02:48.4]} 9... Nf6 {[%clk
0:02:16]} 10. O-O-O {[%clk 0:02:28]} 10... Na6 {[%clk 0:02:16.3]} 11. Bd6 {[%clk
0:02:25.2]} 11... Ng4 {[%clk 0:02:09.9]} 12. Bh3 {[%clk 0:02:04.6]} 12... Nxf2
{[%clk 0:02:05.2]} 13. Bxf5 {[%clk 0:02:04.5]} 13... Bg5+ {[%clk 0:01:57]} 14.
Kb1 {[%clk 0:02:03.1]} 14... Nxh1 {[%clk 0:01:39]} 15. Nxe4 {[%clk 0:01:51.1]}
15... Be7 {[%clk 0:01:10.3]} 16. Rxh1 {[%clk 0:01:44.9]} 16... g6 {[%clk
0:01:02.2]} 17. Bxc8 {[%clk 0:01:20.9]} 17... Rxc8 {[%clk 0:01:02.7]} 18. Rd1
{[%clk 0:01:15.4]} 18... Rd8 {[%clk 0:00:46.7]} 19. c5 {[%clk 0:01:09]} 19...
Nb4 {[%clk 0:00:25]} 20. Ne6 {[%clk 0:01:05.1]} 20... Rd7 {[%clk 0:00:24.7]} 21.
Rf1 {[%clk 0:00:58.4]} 21... Nd5 {[%clk 0:00:22.6]} 22. h4 {[%clk 0:00:47.8]}
22... Ne3 {[%clk 0:00:22.4]} 23. Ng7+ {[%clk 0:00:37.4]} 23... Kd8 {[%clk
0:00:22]} 24. Rf7 {[%clk 0:00:37.8]} 24... Bxd6 {[%clk 0:00:20.2]} 25. Nxd6
{[%clk 0:00:32.7]} 25... Re7 {[%clk 0:00:12.7]} 26. Ne6+ {[%clk 0:00:12.5]}
26... Rxe6 {[%clk 0:00:09.3]} 27. Rxb7 {[%clk 0:00:13]} 27... Rf8 {[%clk
0:00:08.1]} 28. a4 {[%clk 0:00:12.4]} 28... Rf1+ {[%clk 0:00:06.6]} 29. Ka2
{[%clk 0:00:12.7]} 29... Re7 {[%clk 0:00:06.1]} 30. Rb8+ {[%clk 0:00:12.3]}
30... Kd7 {[%clk 0:00:06.8]} 31. Rb3 {[%clk 0:00:09.6]} 31... a5 {[%clk
0:00:04.9]} 32. Rd3 {[%clk 0:00:08.6]} 32... Nc2 {[%clk 0:00:04.9]} 33. e4
{[%clk 0:00:09.5]} 33... Nb4+ {[%clk 0:00:04.8]} 0-1